fUSD/lending_fUSD_20240223
["ID","MTS","AMOUNT","RATE_DAILY","PERIOD"]
[314988856,1708716658353,-500.0,0.00029581,2]
[314988857,1708716658362,-500.0,0.00029581,2]
[314988858,1708716658371,-500.0,0.00029581,2]
[314988859,1708716658380,-617.48288557,0.00029581,2]
[314988860,1708716658389,-500.0,0.00029581,2]
[314988861,1708716658399,-500.0,0.00029581,2]
[314988862,1708716658408,-500.0,0.00029581,2]
[314988863,1708716658418,-500.0,0.00029581,2]
[314988864,1708716658427,-500.0,0.00029581,2]
[314988865,1708716658437,-500.0,0.00029581,2]
[314988866,1708716658445,-313.25349435,0.00029581,2]
[314988867,1708716658455,-500.0,0.00029581,2]
[314988868,1708716658464,-500.0,0.00029581,2]
[314988869,1708716658473,-500.0,0.00029581,2]
[314988870,1708716658482,-397.66784125,0.00029581,2]
[314988871,1708716658491,-500.0,0.00029581,2]
[314988872,1708716658500,-500.0,0.00029581,2]
[314988873,1708716658510,-500.0,0.00029581,2]
[314988874,1708716658519,-500.0,0.00029581,2]
[314988875,1708716658528,-500.0,0.00029581,2]
[314988876,1708716658538,-500.0,0.00029581,2]
[314988877,1708716658547,-1226.41,0.00029581,2]
[314988878,1708716658556,-500.0,0.00029581,2]
[314988879,1708716658566,-212.89006201,0.00029581,2]
[314988880,1708716658575,-500.0,0.00029581,2]
[314988881,1708716658583,-748.66,0.00029581,2]
[314988882,1708716658593,-500.0,0.00029581,2]
[314988883,1708716658601,-500.0,0.00029581,2]
[314988884,1708716658611,-749.44,0.00029581,2]
[314988885,1708716658620,-500.0,0.00029581,2]
[314988886,1708716658629,-500.0,0.00029581,2]
[314988887,1708716658639,-500.0,0.00029581,2]
[314988888,1708716658648,-162.59333851,0.00029581,2]
[314988889,1708716658659,-569.85,0.00029581,2]
[314988890,1708716658668,-500.0,0.00029581,2]
[314988891,1708716658677,-500.0,0.00029581,2]
[314988892,1708716658687,-500.0,0.00029581,2]
[314988893,1708716658696,-500.0,0.00029581,2]
[314988894,1708716658706,-500.0,0.00029581,2]
[314988895,1708716658716,-500.0,0.00029581,2]
[314988896,1708716658725,-677.35,0.00029581,2]
[314988897,1708716658735,-500.0,0.00029581,2]
[314988898,1708716658744,-500.0,0.00029581,2]
[314988899,1708716658754,-500.0,0.00029581,2]
[314988900,1708716658763,-500.0,0.00029581,2]
[314988901,1708716658773,-500.0,0.00029581,2]
[314988902,1708716658782,-500.0,0.00029581,2]
[314988903,1708716658791,-1246.55,0.00029581,2]
[314988904,1708716658800,-745.51,0.00029581,2]
[314988905,1708716658809,-500.0,0.00029581,2]
[314988906,1708716658818,-500.0,0.00029581,2]
[314988907,1708716658828,-500.0,0.00029581,2]
[314988908,1708716658837,-500.0,0.00029581,2]
[314988909,1708716658847,-500.0,0.00029581,2]
[314988910,1708716658856,-500.0,0.00029581,2]
[314988911,1708716658866,-500.0,0.00029581,2]
[314988912,1708716658876,-500.0,0.00029581,2]
[314988913,1708716658885,-578.28,0.00029581,2]
[314988914,1708716658894,-500.0,0.00029581,2]
[314988915,1708716658905,-500.0,0.00029581,2]
[314988916,1708716658914,-500.0,0.00029581,2]
[314988917,1708716658924,-640.46,0.00029581,2]
[314988918,1708716658933,-500.0,0.00029581,2]
[314988919,1708716658943,-1048.34,0.00029581,2]
[314988920,1708716658952,-500.0,0.00029581,2]
[314988921,1708716658961,-500.0,0.00029581,2]
[314988922,1708716658971,-500.0,0.00029581,2]
[314988923,1708716658980,-168.75267509,0.00029582,2]
[314988924,1708716658989,-151.54644394,0.00029583,2]
[314988925,1708716658998,-456.48196893,0.00029589,2]
[314988926,1708716659008,-672.42,0.00029589,2]
[314988927,1708716659017,-931.36,0.00029589,2]
[314988928,1708716659028,-924.78,0.00029589,2]
[314988929,1708716659037,-500.0,0.00029589,2]
[314988930,1708716659046,-1249.12,0.00029589,2]
[314988931,1708716659056,-597.21,0.00029589,2]
[314988932,1708716659065,-500.0,0.00029589,2]
[314988933,1708716659075,-956.56,0.00029589,2]
[314988934,1708716659084,-2365.53,0.00029589,2]
[314988935,1708716659094,-500.0,0.00029589,2]
[314988936,1708716659103,-1344.39,0.00029589,2]
[314988937,1708716659112,-1433.17,0.00029589,2]
[314988938,1708716659121,-1067.67,0.00029589,2]
[314988939,1708716659130,-1175.68,0.00029589,2]
[314988940,1708716659139,-3334.59,0.00029589,2]
[314988941,1708716659149,-2604.11,0.00029589,2]
[314988942,1708716659159,-1551.36,0.00029589,2]
[314988943,1708716659169,-702.0,0.00029589,2]
[314988944,1708716659179,-3056.12,0.00029589,2]
[314988945,1708716659189,-520.18855665,0.00029592,2]
[314988946,1708716659199,-265.64558969,0.00029592,2]
[314988947,1708716659208,-337.53725946,0.00029594,2]
[314988948,1708716659217,-155.26,0.00029599,2]
[314988949,1708716659227,-151.54644394,0.00029627,2]
[314988950,1708716659240,-520.18855665,0.00029637,2]
[314988951,1708716659250,-28065.01382103,0.00029718,7]
[314988952,1708716659260,-500.0,0.00029718,2]
[314988953,1708716659269,-500.0,0.00029718,2]
[314988954,1708716659279,-500.0,0.00029718,2]
[314988955,1708716659288,-500.0,0.00029718,2]
[314988956,1708716659298,-500.0,0.00029718,2]
[314988957,1708716659307,-500.0,0.00029718,2]
[314988958,1708716659318,-643.30584758,0.00029718,2]
[314988959,1708716659328,-500.0,0.00029718,2]
[314988960,1708716659338,-500.0,0.00029718,2]
[314988961,1708716659347,-500.0,0.00029718,2]
[314988962,1708716659357,-500.0,0.00029718,2]
[314988963,1708716659367,-500.0,0.00029718,2]
[314988964,1708716659376,-500.0,0.00029718,2]
[314988965,1708716659385,-500.0,0.00029718,2]
[314988966,1708716659395,-500.0,0.00029718,2]
[314988967,1708716659404,-500.0,0.00029718,2]
[314988968,1708716659413,-500.0,0.00029718,2]
[314988969,1708716659422,-500.0,0.00029718,2]
[314988970,1708716659432,-500.0,0.00029718,2]
[314988971,1708716659442,-500.0,0.00029718,2]
[314988972,1708716659451,-500.0,0.00029718,2]
[314988973,1708716659461,-500.0,0.00029718,2]
[314988974,1708716659472,-1226.41,0.00029718,2]
[314988975,1708716659481,-500.0,0.00029718,2]
[314988976,1708716659490,-500.0,0.00029718,2]
[314988977,1708716659500,-748.66,0.00029718,2]
[314988978,1708716659510,-500.0,0.00029718,2]
[314988979,1708716659519,-500.0,0.00029718,2]
[314988980,1708716659529,-749.44,0.00029718,2]
[314988981,1708716659539,-500.0,0.00029718,2]
[314988982,1708716659549,-500.0,0.00029718,2]
[314988983,1708716659558,-569.85,0.00029718,2]
[314988984,1708716659567,-500.0,0.00029718,2]
[314988985,1708716659577,-500.0,0.00029718,2]
[314988986,1708716659586,-500.0,0.00029718,2]
[314988987,1708716659595,-500.0,0.00029718,2]
[314988988,1708716659604,-500.0,0.00029718,2]
[314988989,1708716659614,-500.0,0.00029718,2]
[314988990,1708716659624,-677.35,0.00029718,2]
[314988991,1708716659634,-500.0,0.00029718,2]
[314988992,1708716659644,-500.0,0.00029718,2]
[314988993,1708716659653,-500.0,0.00029718,2]
[314988994,1708716659663,-500.0,0.00029718,2]
[314988995,1708716659673,-192.0,0.00029718,2]
[314988996,1708716659682,-308.38811446,0.00029718,2]
[314988997,1708716659692,-1246.55,0.00029718,2]
[314988998,1708716659701,-745.51,0.00029718,2]
[314988999,1708716659711,-500.0,0.00029718,2]
[314989000,1708716659721,-500.0,0.00029718,2]
[314989001,1708716659731,-500.0,0.00029718,2]
[314989002,1708716659741,-500.0,0.00029718,2]
[314989003,1708716659753,-500.0,0.00029718,2]
[314989004,1708716659763,-500.0,0.00029718,2]
[314989005,1708716659773,-500.0,0.00029718,2]
[314989006,1708716659782,-500.0,0.00029718,2]
[314989007,1708716659792,-578.28,0.00029718,2]
[314989008,1708716659802,-500.0,0.00029718,2]
[314989009,1708716659811,-500.0,0.00029718,2]
[314989010,1708716659821,-592.11832571,0.00029718,2]
[314989011,1708716659831,-640.46,0.00029718,2]
[314989012,1708716659841,-500.0,0.00029718,2]
[314989013,1708716659851,-1048.34,0.00029718,2]
[314989014,1708716659860,-500.0,0.00029718,2]
[314989015,1708716659870,-500.0,0.00029718,2]
[314989016,1708716659880,-672.42,0.00029726,2]
[314989017,1708716659890,-931.36,0.00029726,2]
[314989018,1708716659900,-924.78,0.00029726,2]
[314989019,1708716659911,-500.0,0.00029726,2]
[314989020,1708716659921,-1249.12,0.00029726,2]
[314989021,1708716659931,-597.21,0.00029726,2]
[314989022,1708716659941,-500.0,0.00029726,2]
[314989023,1708716659951,-956.56,0.00029726,2]
[314989024,1708716659961,-2365.53,0.00029726,2]
[314989025,1708716659971,-500.0,0.00029726,2]
[314989026,1708716659981,-1344.39,0.00029726,2]
[314989027,1708716659991,-1433.17,0.00029726,2]
[314989028,1708716660001,-1067.67,0.00029726,2]
[314989029,1708716660010,-1175.68,0.00029726,2]
[314989030,1708716660020,-3334.59,0.00029726,2]
[314989031,1708716660030,-2604.11,0.00029726,2]
[314989032,1708716660040,-1551.36,0.00029726,2]
[314989033,1708716660050,-702.0,0.00029726,2]
[314989034,1708716660060,-3056.12,0.00029726,2]
[314989035,1708716660069,-151.49591866,0.0002975,2]
[314989036,1708716660080,-265.64558969,0.00029761,2]
[314989037,1708716660089,-153.74027557,0.00029783,2]
[314989038,1708716660099,-275.5,0.000298,2]
[314989039,1708716660109,-265.64558969,0.00029804,2]
[314989040,1708716660118,-373.023824,0.00029854,2]
[314989041,1708716660128,-254.243819,0.00029854,2]
[314989042,1708716660137,-155.007164,0.00029854,2]
[314989043,1708716660147,-520.18855665,0.00029854,2]
[314989044,1708716660157,-500.0,0.00029855,2]
[314989045,1708716660166,-500.0,0.00029855,2]
[314989046,1708716660176,-500.0,0.00029855,2]
[314989047,1708716660185,-635.29576226,0.00029855,2]
[314989048,1708716660195,-500.0,0.00029855,2]
[314989049,1708716660205,-206.72727922,0.00029855,2]
[314989050,1708716660214,-602.91,0.00029855,2]
[314989051,1708716660224,-500.0,0.00029855,2]
[314989052,1708716660239,-500.0,0.00029855,2]
[314989053,1708716660249,-500.0,0.00029855,2]
[314989054,1708716660259,-500.0,0.00029855,2]
[314989055,1708716660269,-500.0,0.00029855,2]
[314989056,1708716660279,-500.0,0.00029855,2]
[314989057,1708716660289,-500.0,0.00029855,2]
[314989058,1708716660299,-500.0,0.00029855,2]
[314989059,1708716660309,-500.0,0.00029855,2]
[314989060,1708716660320,-500.0,0.00029855,2]
[314989061,1708716660330,-187.42,0.00029855,2]
[314989062,1708716660340,-500.0,0.00029855,2]
[314989063,1708716660350,-182.14,0.00029855,2]
[314989064,1708716660360,-1226.41,0.00029855,2]
[314989065,1708716660370,-175.58,0.00029855,2]
[314989066,1708716660379,-500.0,0.00029855,2]
[314989067,1708716660389,-748.66,0.00029855,2]
[314989068,1708716660399,-500.0,0.00029855,2]
[314989069,1708716660410,-749.44,0.00029855,2]
[314989070,1708716660421,-500.0,0.00029855,2]
[314989071,1708716660431,-500.0,0.00029855,2]
[314989072,1708716660441,-569.85,0.00029855,2]
[314989073,1708716660451,-500.0,0.00029855,2]
[314989074,1708716660461,-392.50230482,0.00029855,2]
[314989075,1708716660471,-500.0,0.00029855,2]
[314989076,1708716660481,-340.01,0.00029855,2]
[314989077,1708716660491,-500.0,0.00029855,2]
[314989078,1708716660501,-677.35,0.00029855,2]
[314989079,1708716660511,-500.0,0.00029855,2]
[314989080,1708716660520,-500.0,0.00029855,2]
[314989081,1708716660530,-500.0,0.00029855,2]
[314989082,1708716660540,-500.0,0.00029855,2]
[314989083,1708716660550,-1246.55,0.00029855,2]
[314989084,1708716660560,-745.51,0.00029855,2]
[314989085,1708716660571,-500.0,0.00029855,2]
[314989086,1708716660581,-500.0,0.00029855,2]
[314989087,1708716660591,-500.0,0.00029855,2]
[314989088,1708716660601,-500.0,0.00029855,2]
[314989089,1708716660611,-500.0,0.00029855,2]
[314989090,1708716660621,-500.0,0.00029855,2]
[314989091,1708716660631,-500.0,0.00029855,2]
[314989092,1708716660641,-578.28,0.00029855,2]
[314989093,1708716660651,-500.0,0.00029855,2]
[314989094,1708716660662,-500.0,0.00029855,2]
[314989095,1708716660671,-640.46,0.00029855,2]
[314989096,1708716660681,-1048.34,0.00029855,2]
[314989097,1708716660690,-500.0,0.00029855,2]
[314989098,1708716660700,-672.42,0.00029863,2]
[314989099,1708716660709,-931.36,0.00029863,2]
[314989100,1708716660720,-924.78,0.00029863,2]
[314989101,1708716660729,-500.0,0.00029863,2]
[314989102,1708716660740,-1249.12,0.00029863,2]
[314989103,1708716660751,-597.21,0.00029863,2]
[314989104,1708716660762,-482.24130688,0.00029863,2]
[314989105,1708716660772,-956.56,0.00029863,2]
[314989106,1708716660783,-2365.53,0.00029863,2]
[314989107,1708716660793,-500.0,0.00029863,2]
[314989108,1708716660803,-1344.39,0.00029863,2]
[314989109,1708716660813,-1433.17,0.00029863,2]
[314989110,1708716660823,-1067.67,0.00029863,2]
[314989111,1708716660834,-1175.68,0.00029863,2]
[314989112,1708716660844,-3334.59,0.00029863,2]
[314989113,1708716660854,-2604.11,0.00029863,2]
[314989114,1708716660864,-1551.36,0.00029863,2]
[314989115,1708716660874,-702.0,0.00029863,2]
[314989116,1708716660884,-3056.12,0.00029863,2]
[314989117,1708716660894,-1372.22651836,0.0002987,2]
[314989118,1708716660905,-449.90602785,0.0002987,2]
[314989119,1708716660917,-337.53725946,0.00029874,2]
[314989120,1708716660927,-168.4531371,0.00029876,2]
[314989121,1708716660940,-4970.94547961,0.00029878,2]
[314989122,1708716660950,-154.02083881,0.00029892,2]
[314989123,1708716660960,-700.0,0.0002997,2]
[314989124,1708716660970,-700.0,0.0002997,2]
[314989125,1708716660980,-400.0,0.0002997,2]
[314989126,1708716660992,-400.0,0.0002997,2]
[314989127,1708716661003,-265.64558969,0.00029977,2]
[314989128,1708716661013,-8177.0,0.00029989,2]
[314989129,1708716661024,-5635.316,0.00029989,2]
[314989130,1708716661034,-2695.0,0.00029989,2]
[314989131,1708716661046,-4107.0,0.00029989,2]
[314989132,1708716661057,-7429.0,0.00029989,2]
[314989133,1708716661067,-33527.319,0.00029989,2]
[314989134,1708716661077,-203.663,0.00029989,2]
[314989135,1708716661088,-2932.0,0.00029989,2]
[314989136,1708716661098,-19879.0,0.00029989,2]
[314989137,1708716661108,-2295.0,0.00029989,2]
[314989138,1708716661118,-458.0,0.00029989,2]
[314989139,1708716661128,-955.0,0.00029989,2]
[314989140,1708716661138,-500.0,0.00029992,2]
[314989141,1708716661148,-500.0,0.00029992,2]
[314989142,1708716661162,-500.0,0.00029992,2]
[314989143,1708716661172,-500.0,0.00029992,2]
[314989144,1708716661182,-541.64,0.00029992,2]
[314989145,1708716661193,-500.0,0.00029992,2]
[314989146,1708716661203,-198.17,0.00029992,2]
[314989147,1708716661213,-500.0,0.00029992,2]
[314989148,1708716661224,-500.0,0.00029992,2]
[314989149,1708716661236,-503.47,0.00029992,2]
[314989150,1708716661248,-500.0,0.00029992,2]
[314989151,1708716661259,-634.09098394,0.00029992,2]
[314989152,1708716661269,-516.10250406,0.00029992,2]
[314989153,1708716661279,-500.0,0.00029992,2]
[314989154,1708716661471,-1226.41,0.00029992,2]
[314989155,1708716661482,-500.0,0.00029992,2]
[314989156,1708716661492,-748.66,0.00029992,2]
[314989157,1708716661502,-500.0,0.00029992,2]
[314989158,1708716661512,-749.44,0.00029992,2]
[314989159,1708716661521,-403.4318319,0.00029992,2]
[314989160,1708716661531,-500.0,0.00029992,2]
[314989161,1708716661541,-569.85,0.00029992,2]
[314989162,1708716661551,-500.0,0.00029992,2]
[314989163,1708716661561,-677.35,0.00029992,2]
[314989164,1708716661571,-345.66,0.00029992,2]
[314989165,1708716661581,-500.0,0.00029992,2]
[314989166,1708716661591,-500.0,0.00029992,2]
[314989167,1708716661601,-1246.55,0.00029992,2]
[314989168,1708716661611,-745.51,0.00029992,2]
[314989169,1708716661621,-500.0,0.00029992,2]
[314989170,1708716661630,-500.0,0.00029992,2]
[314989171,1708716661640,-500.0,0.00029992,2]
[314989172,1708716661649,-500.0,0.00029992,2]
[314989173,1708716661660,-500.0,0.00029992,2]
[314989174,1708716661669,-500.0,0.00029992,2]
[314989175,1708716661679,-500.0,0.00029992,2]
[314989176,1708716661688,-578.28,0.00029992,2]
[314989177,1708716661697,-500.0,0.00029992,2]
[314989178,1708716661707,-500.0,0.00029992,2]
[314989179,1708716661716,-640.46,0.00029992,2]
[314989180,1708716661726,-1048.34,0.00029992,2]
[314989181,1708716661735,-500.0,0.00029992,2]
[314989182,1708716661745,-672.42,0.00029999,2]
[314989183,1708716661755,-931.36,0.00029999,2]
[314989184,1708716661766,-924.78,0.00029999,2]
[314989185,1708716661776,-500.0,0.00029999,2]
[314989186,1708716661786,-1249.12,0.00029999,2]
[314989187,1708716661796,-597.21,0.00029999,2]
[314989188,1708716661806,-956.56,0.00029999,2]
[314989189,1708716661816,-2365.53,0.00029999,2]
[314989190,1708716661826,-500.0,0.00029999,2]
[314989191,1708716661837,-1344.39,0.00029999,2]
[314989192,1708716661847,-1433.17,0.00029999,2]
[314989193,1708716661856,-1067.67,0.00029999,2]
[314989194,1708716661866,-1175.68,0.00029999,2]
[314989195,1708716661876,-3334.59,0.00029999,2]
[314989196,1708716661886,-2604.11,0.00029999,2]
[314989197,1708716661896,-1551.36,0.00029999,2]
[314989198,1708716661906,-702.0,0.00029999,2]
[314989199,1708716661916,-3056.12,0.00029999,2]
[314989200,1708716661925,-5655.18759748,0.0003,4]
[314989201,1708716661935,-200.0,0.0003,2]
[314989202,1708716661945,-200.0,0.0003,2]
[314989203,1708716661955,-63616.14007185,0.0003,4]
[314989204,1708716661964,-1560.41678267,0.0003,4]
[314989205,1708716661974,-311.0,0.0003,18]
[314989206,1708716661984,-200.0,0.0003,2]
[314989207,1708716661993,-337.53725946,0.00030008,7]
[314989208,1708716662003,-1261.0,0.000301,2]
[314989209,1708716662013,-520.18855665,0.00030112,7]
[314989210,1708716662023,-154.98329938,0.00030125,7]
[314989211,1708716662032,-500.0,0.00030129,2]
[314989212,1708716662042,-500.0,0.00030129,2]
[314989213,1708716662051,-500.0,0.00030129,2]
[314989214,1708716662061,-264.14,0.00030129,2]
[314989215,1708716662070,-244.85,0.00030129,2]
[314989216,1708716662080,-500.0,0.00030129,2]
[314989217,1708716662089,-220.01,0.00030129,2]
[314989218,1708716662099,-500.0,0.00030129,2]
[314989219,1708716662109,-500.0,0.00030129,2]
[314989220,1708716662118,-1226.41,0.00030129,2]
[314989221,1708716662128,-500.0,0.00030129,2]
[314989222,1708716662137,-748.66,0.00030129,2]
[314989223,1708716662146,-500.0,0.00030129,2]
[314989224,1708716662156,-749.44,0.00030129,2]
[314989225,1708716662165,-569.85,0.00030129,2]
[314989226,1708716662175,-500.0,0.00030129,2]
[314989227,1708716662185,-677.35,0.00030129,2]
[314989228,1708716662194,-500.0,0.00030129,2]
[314989229,1708716662205,-500.0,0.00030129,2]
[314989230,1708716662214,-1246.55,0.00030129,2]
[314989231,1708716662225,-745.51,0.00030129,2]
[314989232,1708716662236,-500.0,0.00030129,2]
[314989233,1708716662247,-500.0,0.00030129,2]
[314989234,1708716662256,-500.0,0.00030129,2]
[314989235,1708716662266,-500.0,0.00030129,2]
[314989236,1708716662277,-500.0,0.00030129,2]
[314989237,1708716662287,-500.0,0.00030129,2]
[314989238,1708716662297,-500.0,0.00030129,2]
[314989239,1708716662306,-578.28,0.00030129,2]
[314989240,1708716662318,-500.0,0.00030129,2]
[314989241,1708716662329,-500.0,0.00030129,2]
[314989242,1708716662339,-640.46,0.00030129,2]
[314989243,1708716662348,-1048.34,0.00030129,2]
[314989244,1708716662358,-214.30335533,0.00030129,2]
[314989245,1708716662367,-672.42,0.00030136,2]
[314989246,1708716662377,-931.36,0.00030136,2]
[314989247,1708716662387,-924.78,0.00030136,2]
[314989248,1708716662397,-611.16,0.00030136,2]
[314989249,1708716662409,-1249.12,0.00030136,2]
[314989250,1708716662419,-597.21,0.00030136,2]
[314989251,1708716662429,-956.56,0.00030136,2]
[314989252,1708716662438,-2365.53,0.00030136,2]
[314989253,1708716662448,-259.59093901,0.00030136,2]
[314989254,1708716662458,-1344.39,0.00030136,2]
[314989255,1708716662468,-1433.17,0.00030136,2]
[314989256,1708716662477,-1067.67,0.00030136,2]
[314989257,1708716662487,-1175.68,0.00030136,2]
[314989258,1708716662496,-3334.59,0.00030136,2]
[314989259,1708716662506,-2604.11,0.00030136,2]
[314989260,1708716662515,-1551.36,0.00030136,2]
[314989261,1708716662525,-702.0,0.00030136,2]
[314989262,1708716662534,-3056.12,0.00030136,2]
[314989263,1708716662544,-158.69,0.00030137,2]
[314989264,1708716662554,-166.16201499,0.00030139,7]
[314989265,1708716662563,-265.64558969,0.00030149,7]
[314989266,1708716662572,-151.0,0.00030193,120]
[314989267,1708716662582,-337.53725946,0.00030218,7]
[314989268,1708716662591,-373.023824,0.00030223,2]
[314989269,1708716662601,-254.243819,0.00030223,2]
[314989270,1708716662610,-155.007164,0.00030223,2]
[314989271,1708716662619,-151.54644394,0.00030243,7]
[314989272,1708716662628,-189.91261092,0.00030252,2]
[314989273,1708716662638,-160.49481861,0.00030256,7]
[314989274,1708716662648,-500.0,0.00030266,2]
[314989275,1708716662658,-494.15,0.00030266,2]
[314989276,1708716662667,-500.0,0.00030266,2]
[314989277,1708716662676,-501.01039976,0.00030266,2]
[314989278,1708716662686,-437.61089818,0.00030266,2]
[314989279,1708716662695,-1226.41,0.00030266,2]
[314989280,1708716662705,-500.0,0.00030266,2]
[314989281,1708716662714,-748.66,0.00030266,2]
[314989282,1708716662724,-749.44,0.00030266,2]
[314989283,1708716662734,-569.85,0.00030266,2]
[314989284,1708716662744,-500.0,0.00030266,2]
[314989285,1708716662753,-677.35,0.00030266,2]
[314989286,1708716662763,-500.0,0.00030266,2]
[314989287,1708716662773,-308.35481818,0.00030266,2]
[314989288,1708716662783,-1246.55,0.00030266,2]
[314989289,1708716662792,-745.51,0.00030266,2]
[314989290,1708716662802,-500.0,0.00030266,2]
[314989291,1708716662812,-500.0,0.00030266,2]
[314989292,1708716662822,-500.0,0.00030266,2]
[314989293,1708716662832,-500.0,0.00030266,2]
[314989294,1708716662842,-500.0,0.00030266,2]
[314989295,1708716662851,-500.0,0.00030266,2]
[314989296,1708716662862,-578.28,0.00030266,2]
[314989297,1708716662871,-500.0,0.00030266,2]
[314989298,1708716662882,-500.0,0.00030266,2]
[314989299,1708716662892,-640.46,0.00030266,2]
[314989300,1708716662902,-1048.34,0.00030266,2]
[314989301,1708716662911,-672.42,0.00030273,2]
[314989302,1708716662921,-931.36,0.00030273,2]
[314989303,1708716662931,-924.78,0.00030273,2]
[314989304,1708716662941,-1249.12,0.00030273,2]
[314989305,1708716662951,-597.21,0.00030273,2]
[314989306,1708716662961,-956.56,0.00030273,2]
[314989307,1708716662970,-2365.53,0.00030273,2]
[314989308,1708716662980,-1344.39,0.00030273,2]
[314989309,1708716662990,-1433.17,0.00030273,2]
[314989310,1708716663000,-1067.67,0.00030273,2]
[314989311,1708716663010,-1175.68,0.00030273,2]
[314989312,1708716663019,-3334.59,0.00030273,2]
[314989313,1708716663029,-2604.11,0.00030273,2]
[314989314,1708716663039,-1551.36,0.00030273,2]
[314989315,1708716663048,-702.0,0.00030273,2]
[314989316,1708716663058,-3056.12,0.00030273,2]
[314989317,1708716663068,-520.18855665,0.00030285,7]
[314989318,1708716663077,-265.64558969,0.0003029,7]
[314989319,1708716663086,-153.74027557,0.00030318,7]
[314989320,1708716663096,-8929.1978675,0.00030349,7]
[314989321,1708716663105,-30125.57402863,0.00030349,7]
[314989322,1708716663115,-18241.41394409,0.00030349,7]
[314989323,1708716663124,-11740.43008262,0.00030349,7]
[314989324,1708716663134,-159.39088986,0.0003035,7]
[314989325,1708716663143,-153.31768893,0.00030374,7]
[314989326,1708716663152,-500.0,0.00030403,2]
[314989327,1708716663162,-1226.41,0.00030403,2]
[314989328,1708716663171,-244.79,0.00030403,2]
[314989329,1708716663180,-748.66,0.00030403,2]
[314989330,1708716663190,-749.44,0.00030403,2]
[314989331,1708716663199,-569.85,0.00030403,2]
[314989332,1708716663208,-677.35,0.00030403,2]
[314989333,1708716663218,-1246.55,0.00030403,2]
[314989334,1708716663228,-745.51,0.00030403,2]
[314989335,1708716663241,-500.0,0.00030403,2]
[314989336,1708716663253,-524.74901424,0.00030403,2]
[314989337,1708716663262,-578.28,0.00030403,2]
[314989338,1708716663271,-500.0,0.00030403,2]
[314989339,1708716663282,-640.46,0.00030403,2]
[314989340,1708716663292,-1048.34,0.00030403,2]
[314989341,1708716663301,-155.14487318,0.00030407,7]
[314989342,1708716663314,-672.42,0.0003041,2]
[314989343,1708716663325,-931.36,0.0003041,2]
[314989344,1708716663336,-924.78,0.0003041,2]
[314989345,1708716663346,-1249.12,0.0003041,2]
[314989346,1708716663357,-597.21,0.0003041,2]
[314989347,1708716663367,-956.56,0.0003041,2]
[314989348,1708716663377,-2365.53,0.0003041,2]
[314989349,1708716663387,-1344.39,0.0003041,2]
[314989350,1708716663398,-1433.17,0.0003041,2]
[314989351,1708716663408,-1067.67,0.0003041,2]
[314989352,1708716663418,-1175.68,0.0003041,2]
[314989353,1708716663427,-3334.59,0.0003041,2]
[314989354,1708716663436,-2604.11,0.0003041,2]
[314989355,1708716663445,-1551.36,0.0003041,2]